Workbook

Sheet Intro
H21: On the basis of the financial statement of FINANC'ICN, calculate the WC, the WCR and treasury and the intermediate management balances for the years N and N-1. Calculate the cash flow statement for the year N.

Sheet Balance Sheet
B1: Balance Sheet
B2: Assets | G2: Shareholders equity and liabilities
C3: N | F3: N-1 | H3: N | I3: N-1
C4: GROSS | D4: DEP & IMPAIR | E4: NET | F4: NET | H4: Net | I4: Net
B5: Intangible assets | C5: =RAND()*(5000-3000)+3000 -> 3205.50148 | D5: =C5*2/4 -> 1602.75074 | E5: =C5-D5 -> 1602.75074 | F5: =((E5+E6)+'Income statement'!G12+'Income statement'!C20-(0.1*(C5+C6)))*0.02 -> 1347.137426 | G5: Capital | H5: =RAND()*(30000-27000)+27000 -> 27794.8639 | I5: =RAND()*(27000-22000)+22000 -> 23055.51786
B6: Tangible assets | C6: =RAND()*(100000-75000)+75000 -> 81504.60855 | D6: =C6*5/30 -> 13584.10143 | E6: =C6-D6 -> 67920.50713 | F6: =((E5+E6)+'Income statement'!G12+'Income statement'!C20-(0.1*(C5+C6)))*0.98 -> 66009.73388 | G6: Share premium | H6: =RAND()*(20000-0)+0 -> 11390.41395 | I6: 0
B7: Shares | C7: =RAND()*(5000-3000)+3000 -> 4960.601199 | E7: 4960.601199 | F7: =RAND()*(1500-1000)+1000 -> 1069.389012 | G7: Reserves | H7: =I7+I8-'Income statement'!G4 -> 7711.935885 | I7: =RAND()*(4000-3000)+3000 -> 3688.382838
B8: Loans | C8: =RAND()*(1000-500)+500 -> 687.3104119 | E8: 687.3104119 | F8: =RAND()*(1800-1000)+1000 -> 1137.155354 | G8: Retained earnings | H8: ='Income statement'!C34 -> 9676.829422 | I8: ='Income statement'!D34 -> 4180.278801
B9: TOTAL FIXED ASSETS (I) | C9: =SUM(C5:C8) -> 90358.02164 | D9: 15186.85217 | E9: =SUM(E5:E8) -> 75171.16948 | F9: =SUM(F5:F8) -> 69563.41567 | G9: Capital grant | H9: =I9-'Income statement'!G14+INT(RAND()*(800-600)+600) -> 734.1118458 | I9: =RAND()*(150-100)+100 -> 115.7454486
B10: Inventories Raw material | C10: =RAND()*(13000-10000)+10000 -> 10912.19449 | E10: =C10-D10 -> 10912.19449 | F10: =RAND()*(13000-10000)+10000 -> 10584.23458 | G10: Regulated provisions | H10: =RAND()*(300-200)+200 -> 299.8040906 | I10: =RAND()*(250-100)+100 -> 206.0472421
B11: Inventories Products | C11: =RAND()*(10000-6000)+6000 -> 6917.253318 | D11: ='Income statement'!G16 -> 2234.406026 | E11: =C11-D11 -> 4682.847292 | F11: =E11+('Income statement'!G16-'Income statement'!H16)-(0.1*C11) -> 4114.355535 | G11: TOTAL EQUITY (I) | H11: =SUM(H5:H10) -> 57607.95909 | I11: =SUM(I5:I10) -> 31245.97219
B12: Inventories Goods | C12: =RAND()*(2500-2000)+2000 -> 2053.71121 | E12: 2053.71121 | F12: =RAND()*(2500-2000)+2000 -> 2467.036328 | G12: Provisions for liabilities and charges (II) | H12: =RAND()*(1000-800)+800 -> 981.981085 | I12: =RAND()*(900-700)+700 -> 730.3895584
B13: Receivables (Customers) | C13: =RAND()*(17000-9000)+9000 -> 11448.47559 | D13: ='Income statement'!G17 -> 2252.539041 | E13: 9195.936549 | F13: =E13+('Income statement'!G17-'Income statement'!H17)-(0.1*C13) -> 8210.173471 | G13: Financial debt * | H13: =RAND()*(100000-60000)+60000 -> 94449.41153 | I13: =RAND()*(80000-72000)+72000 -> 72559.24388
B14: Other receivables | C14: =RAND()*(2500-2000)+2000 -> 2431.929675 | E14: 2431.929675 | F14: =RAND()*(2500-2000)+2000 -> 2415.428485 | G14: Payables (suppliers) | H14: =RAND()*(15000-8000)+8000 -> 14834.14355 | I14: =RAND()*(15000-8000)+8000 -> 14408.96081
B15: Securities | C15: =RAND()*(1000-500)+500 -> 691.9113742 | E15: 691.9113742 | F15: =F67+0.45*(I18-F9-F10-F11-F12-F13-F14-F67) -> 11713.01115 | G15: Social and tax debt | H15: =RAND()*(3000-2000)+2000 -> 2027.149343 | I15: =RAND()*(3000-2000)+2000 -> 2771.639218
B16: Cash | C16: =H18-E9-E10-E11-E12-E13-E14-E15 -> 65303.48515 | E16: 65303.48515 | F16: =F68-0.45*(I18-F9-F10-F11-F12-F13-F14-F67) -> 13626.56919 | G16: Fixed asset debt | H16: =RAND()*(1000-500)+500 -> 542.5405536 | I16: =RAND()*(1000-500)+500 -> 978.0188097
B17: TOTAL CURRENT ASSETS (II) | C17: =SUM(C10:C16) -> 99758.96081 | D17: =SUM(D10:D16) -> 4486.945066 | E17: 95272.01574 | F17: =SUM(F10:F16) -> 53130.80874 | G17: TOTAL LIABILITIES (III) | H17: =SUM(H13:H16) -> 111853.245 | I17: =SUM(I13:I16) -> 90717.86271
B18: TOTAL ASSETS (I+II) | C18: =C17+C9 -> 190116.9825 | D18: =D17+D9 -> 19673.79723 | E18: 170443.1852 | F18: =F17+F9 -> 122694.2244 | G18: TOTAL GENERAL (I+II+III) | H18: =H17+H12+H11 -> 170443.1851 | I18: =I17+I12+I11 -> 122694.2245
G19: Including Overdrafts | H19: =RAND()*(10000-7000)+7000 -> 9084.650889 | I19: =RAND()*(7000-5000)+5000 -> 5057.929453
B25: Here is a balance sheet and an income statement like the exam. Fill the worksheet "Fill it" for training. The exercise can be generated unlimited, randomly. The worksheet "Correction" give you results you have to find.
B64: AIDE A LA GENERATION ALEATOIRE
B66: N | C66: =E18-H18 -> 7.134195766e-05 | E66: N-1
B67: N-1 | C67: =F18-I18 -> -4.077641643e-05 | E67: VMP avant passage d'une part des disponibilités: | F67: =INT(RAND()*(1000-500)+500) -> 564
E68: Disponibilités avant passage d'une partie aux VMP: | F68: =I18-F9-F10-F11-F12-F13-F14-F67 -> 24775.58038

Sheet Income statement
B2: Income statement | F2: ANNEX
C3: N | D3: N-1 | G3: N | H3: N-1
B4: Sales of goods | C4: =RAND()*(7000-5000)+5000 -> 6810.356943 | D4: =RAND()*(7000-5000)+5000 -> 5615.672384 | F4: Dividend paid | G4: =RAND()*(250-100)+100 -> 156.7257131
B5: Sales of products | C5: =RAND()*(40000-25000)+25000 -> 33321.43532 | D5: =RAND()*(30000-20000)+20000 -> 27210.21548
B6: Total Sales | C6: =SUM(C4:C5) -> 40131.79227 | D6: =SUM(D4:D5) -> 32825.88786 | F6: Factored unmatured notes receivable (FUNR) | G6: =RAND()*(2500-1500)+1500 -> 2235.550245 | H6: =RAND()*(2500-1500)+1500 -> 1902.335846
B7: Stored production | C7: =('Balance Sheet'!E11-'Balance Sheet'!F11)+('Income statement'!G16-'Income statement'!H16) -> 691.7253318 | D7: =RAND()*(1000-500)+500 -> 500.9782693
B8: Capitalised production | C8: =RAND()*(300-100)+100 -> 247.6000513 | D8: =RAND()*(300-100)+100 -> 163.9047993 | F8: External staff | G8: =RAND()*(900-500)+500 -> 841.9416181 | H8: =RAND()*(900-500)+500 -> 818.8969295
B9: Operating grant | C9: =RAND()*(200-100)+100 -> 134.3368323 | D9: =RAND()*(200-100)+100 -> 174.8800923
B10: Provision reversals | C10: =RAND()*(100-10)+10 -> 59.31778433 | D10: =RAND()*(100-10)+10 -> 33.00737054 | F10: Sales price of fixed assets | G10: =RAND()*(5000-2000)+2000 -> 4072.021609
B11: Total operating revenues (I) | C11: =SUM(C6:C10) -> 41264.77227 | D11: =SUM(D6:D10) -> 33698.65839 | F11: Gross value of fixed assets sold | G11: =RAND()*(9000-8000)+8000 -> 8326.993664
B12: Purchase of goods | C12: =RAND()*(4000-3000)+3000 -> 3456.039867 | D12: =RAND()*(4000-3000)+3000 -> 3729.870485 | F12: Book value of fixed assets sold | G12: =RAND()*(1800-500)+500 -> 860.2604246
B13: Inventory change (Goods) | C13: =-('Balance Sheet'!E12-'Balance Sheet'!F12) -> 413.3251185 | D13: =RAND()*(300-100)+100 -> 236.0378678
B14: Purchase of raw materials | C14: =RAND()*(5000-1000)+1000 -> 2871.225728 | D14: =RAND()*(6000-1000)+1000 -> 1882.327733 | F14: Investment grants transferred to income | G14: =RAND()*(300-100)+100 -> 103.6336028 | H14: =RAND()*(300-100)+100 -> 108.9326953
B15: Inventory change (Raw materials) | C15: =-('Balance Sheet'!E10-'Balance Sheet'!F10) -> -327.9599117 | D15: =RAND()*(300-100)+100 -> 273.2312748
B16: Other purchases and external expenses | C16: =RAND()*(4000-2500)+2500 -> 3652.984098 | D16: =RAND()*(4000-2500)+2500 -> 2996.066812 | F16: Inventories provisions on 31 - 12 | G16: =RAND()*(2300-2200)+2200 -> 2234.406026 | H16: =RAND()*(2200-1900)+1900 -> 2111.172451
B17: Taxes | C17: =RAND()*(1200-1000)+1000 -> 1145.729071 | D17: =RAND()*(1200-1000)+1000 -> 1189.600795 | F17: Account receivables provisions on 31 - 12 | G17: =RAND()*(2300-2200)+2200 -> 2252.539041 | H17: =RAND()*(2200-1900)+1900 -> 2093.45456
B18: Wages and salaries | C18: =RAND()*(7000-6000)+6000 -> 6434.451505 | D18: =RAND()*(7000-6000)+6000 -> 6794.98611
B19: Payroll | C19: =C18/2 -> 3217.225753 | D19: =D18/2 -> 3397.493055
B20: DAP Depreciation | C20: =RAND()*(6000-3000)+3000 -> 5444.364018 | D20: =RAND()*(6000-3000)+3000 -> 4364.292458
B21: DAP Impairment | C21: =G16-H16+G17-H17+'Balance Sheet'!H10-'Balance Sheet'!I10+'Balance Sheet'!H12-'Balance Sheet'!I12+C10 -> 686.9842149 | D21: =RAND()*(500-100)+100 -> 389.0579186
B22: Total of operating expenses (II) | C22: =SUM(C12:C21) -> 26994.36946 | D22: =SUM(D12:D21) -> 25252.96451
B23: OPERATING INCOME (I-II) | C23: =C11-C22 -> 14270.40281 | D23: =D11-D22 -> 8445.693881
B24: Financial revenue (III) | C24: =RAND()*(60-20)+20 -> 26.01385304 | D24: =RAND()*(60-20)+20 -> 55.67497627
B25: Interest expenses (IV) | C25: =RAND()*(2500-1500)+1500 -> 2289.158381 | D25: =RAND()*(2500-1500)+1500 -> 2023.405013
B26: FINANCIAL INCOME (III-IV) | C26: =C24-C25 -> -2263.144528 | D26: =D24-D25 -> -1967.730036
B27: Extraordinary revenue (V) | C27: =RAND()*(200-100)+100+G10+G14 -> 4314.991645 | D27: =RAND()*(200-100)+100+H10+H14 -> 265.4107687
B28: Extraordinary Expense (VI) | C28: =RAND()*(200-100)+100+INT(G12) -> 1000.603338 | D28: =RAND()*(200-100)+100 -> 124.5998685
B29: EXTRAORDINARY INCOME (V-VI) | C29: =C27-C28 -> 3314.388307 | D29: =D27-D28 -> 140.8109001
B30: Employee participation to the result (VII) | C30: =C34/4 -> 2419.207355 | D30: =D34/4 -> 1045.0697
B31: Income taxes (VIII) | C31: =C34/3 -> 3225.609807 | D31: =D34/3 -> 1393.426267
B32: TOTAL REVENUE (I+III+V) | C32: =C27+C24+C11 -> 45605.77776 | D32: =D27+D24+D11 -> 34019.74414
B33: TOTAL EXPENSES (II+IV+VI+VII+VIII) | C33: =C22+C25+C28+C30+C31 -> 35928.94834 | D33: =D22+D25+D28+D30+D31 -> 29839.46536
B34: PROFIT OR LOSS | C34: =C32-C33 -> 9676.829423 | D34: =D32-D33 -> 4180.278777

Sheet Fill it
B2: FUNCTIONAL ASSESSMENT | I2: FUNCTIONAL ASSESSMENT | N2: I.M.B
C3: N | D3: N-1 | J3: N | K3: N-1 | O3: N | P3: N-1
B4: WORKING CAPITAL: | I4: TREASURY | N4: …
B5: STABLE RESSOURCES | I5: TRASURY NEEDS
I9: TREASURY RESSOURCES | N9: Operating revenue (1)
N10: …
B13: STABLE USES | I13: OR
I15: WORKING CAPITAL
I16: WORKING CAPITAL REQUIREMENTS
B17: WORKING CAPITAL REQUIREMENTS: | N17: Added value (2)
B18: CURRENT USES
F19: CASH FLOW STATEMENT | N19: Only if you sale goods
N23: Gross margin (3)
B24: CURRENT RESSOURCES
N25: …
F29: TOTAL | I29: TOTAL
N31: EBITDA (4)
N32: …
N40: Overall Gross profit (5)
N41: …
N45: Cash Flow (6)
B461: TABLEAU A NE PAS MODIFIER
B473: FUNCTIONAL ASSESSMENT | I473: FUNCTIONAL ASSESSMENT | N473: I.M.B
C474: N | D474: N-1 | J474: N | K474: N-1 | O474: N | P474: N-1
B475: WORKING CAPITAL: | I475: TREASURY | N475: …
B476: STABLE RESSOURCES | I476: TRASURY NEEDS
I480: TREASURY RESSOURCES | N480: Operating revenue (1)
N481: …
B484: STABLE USES | I484: OR
I486: WORKING CAPITAL
I487: WORKING CAPITAL REQUIREMENTS
B488: WORKING CAPITAL REQUIREMENTS: | N488: Added value (2)
B489: CURRENT USES
F490: CASH FLOW STATEMENT | N490: Only if you sale goods
N494: Gross margin (3)
B495: CURRENT RESSOURCES
N496: …
F500: TOTAL | I500: TOTAL
N502: EBITDA (4)
N503: …
N511: Overall Gross profit (5)
N512: …
N516: Cash Flow (6)

Sheet Correction
B2: FUNCTIONAL ASSESSMENT | I2: FUNCTIONAL ASSESSMENT | N2: I.M.B
C3: N | D3: N-1 | J3: N | K3: N-1 | O3: N | P3: N-1
B4: WORKING CAPITAL: | C4: =C5-C13 -> 73270.47635 | D4: =D5-D13 -> 34118.88753 | I4: TREASURY | J4: =J5-J9 -> 54675.19547 | K4: =K5-K9 -> 18379.31499 | N4: …
B5: STABLE RESSOURCES | C5: =C6+C7+C10+C11+C8-C9 -> 163628.4981 | D5: =D6+D7+D10+D11+D8-D9 -> 120891.5245 | I5: TREASURY NEEDS | J5: =J6+J7 -> 65995.3964 | K5: =K6+K7 -> 25339.58041 | N5: Sales | O5: ='Income statement'!C6 -> 40131.79227 | P5: ='Income statement'!D6 -> 32825.88786
B6: Total equity | C6: ='Balance Sheet'!H11 -> 57607.95909 | D6: ='Balance Sheet'!I11 -> 31245.97219 | I6: Securities | J6: ='Balance Sheet'!C15 -> 691.9113742 | K6: ='Balance Sheet'!F15 -> 11713.01115 | M6: + | N6: Stored production | O6: ='Income statement'!C7 -> 691.7253318 | P6: ='Income statement'!D7 -> 500.9782693
A7: + | B7: Provisions for liabilities and charges | C7: ='Balance Sheet'!H12 -> 981.981085 | D7: ='Balance Sheet'!I12 -> 730.3895584 | H7: + | I7: Cash | J7: ='Balance Sheet'!C16 -> 65303.48515 | K7: ='Balance Sheet'!F16 -> 13626.56919 | M7: + | N7: Capitalized production | O7: ='Income statement'!C8 -> 247.6000513 | P7: ='Income statement'!D8 -> 163.9047993
A8: + | B8: Financial debt | C8: ='Balance Sheet'!H13 -> 94449.41153 | D8: ='Balance Sheet'!I13 -> 72559.24388 | I8: - | M8: + | N8: Operating grant | O8: ='Income statement'!C9 -> 134.3368323 | P8: ='Income statement'!D9 -> 174.8800923
A9: - | B9: Overdrafts | C9: ='Balance Sheet'!H19 -> 9084.650889 | D9: ='Balance Sheet'!I19 -> 5057.929453 | I9: TREASURY RESSOURCES | J9: =J10+J11 -> 11320.20113 | K9: =K10+K11 -> 6960.265299 | M9: = | N9: Operating revenue (1) | O9: =SUM(O5:O8) -> 41205.45448 | P9: =SUM(P5:P8) -> 33665.65102
A10: + | B10: Impairment | C10: ='Balance Sheet'!D17 -> 4486.945066 | D10: ='Income statement'!H16+'Income statement'!H17 -> 4204.627011 | I10: Overdrafts | J10: ='Balance Sheet'!H19 -> 9084.650889 | K10: ='Balance Sheet'!I19 -> 5057.929453 | N10: …
A11: + | B11: Depreciation | C11: ='Balance Sheet'!D9 -> 15186.85217 | D11: ='Balance Sheet'!D9-'Income statement'!C20+'Income statement'!G11-'Income statement'!G12 -> 17209.22139 | H11: + | I11: Factored unmatured notes receivable | J11: ='Income statement'!G6 -> 2235.550245 | K11: ='Income statement'!H6 -> 1902.335846 | N11: Operating revenue | O11: =O9 -> 41205.45448 | P11: =P9 -> 33665.65102
B12: - | M12: - | N12: Purchases | O12: ='Income statement'!C12+'Income statement'!C14 -> 6327.265595 | P12: ='Income statement'!D12+'Income statement'!D14 -> 5612.198218
B13: STABLE USES | C13: =C14 -> 90358.02164 | D13: =D14 -> 86772.63706 | I13: OR | M13: - | N13: Inventory changes | O13: ='Income statement'!C13+'Income statement'!C15 -> 85.36520682 | P13: ='Income statement'!D13+'Income statement'!D15 -> 509.2691425
B14: Gross value of fixed assets | C14: ='Balance Sheet'!C9 -> 90358.02164 | D14: =D11+'Balance Sheet'!F9 -> 86772.63706 | M14: - | N14: Other purchases and external expenses | O14: ='Income statement'!C16 -> 3652.984098 | P14: ='Income statement'!D16 -> 2996.066812
I15: WORKING CAPITAL | J15: =C4 -> 73270.47635 | K15: =D4 -> 34118.88753 | M15: + | N15: External staff | O15: ='Income statement'!G8 -> 841.9416181 | P15: ='Income statement'!H8 -> 818.8969295
H16: - | I16: WORKING CAPITAL REQUIREMENTS | J16: =C17 -> 18595.28108 | K16: =D17 -> 15739.57242 | M16: - | N16: Taxes | O16: ='Income statement'!C17 -> 1145.729071 | P16: ='Income statement'!D17 -> 1189.600795
B17: WORKING CAPITAL REQUIREMENTS: | C17: =C18-C24 -> 18595.28108 | D17: =D18-D24 -> 15739.57242 | M17: = | N17: Added value (2) | O17: =O11-O12-O13-O14+O15-O16 -> 30836.05213 | P17: =P11-P12-P13-P14+P15-P16 -> 24177.41298
B18: CURRENT USES | C18: =C19+C20+C21+C22 -> 35999.11453 | D18: =D19+D20+D21+D22 -> 33898.19126
B19: Inventories | C19: ='Balance Sheet'!C10+'Balance Sheet'!C11+'Balance Sheet'!C12 -> 19883.15902 | D19: ='Balance Sheet'!F10+'Balance Sheet'!F11+'Balance Sheet'!F12+'Income statement'!H16 -> 19276.79889 | F19: CASH FLOX STATEMENT | N19: Only if you sale goods
A20: + | B20: Receivables | C20: ='Balance Sheet'!C13 -> 11448.47559 | D20: ='Balance Sheet'!F13+'Income statement'!H17 -> 10303.62803 | N20: Sales of goods | O20: ='Income statement'!C4 -> 6810.356943 | P20: ='Income statement'!D4 -> 5615.672384
A21: + | B21: Other receivables | C21: ='Balance Sheet'!C14 -> 2431.929675 | D21: ='Balance Sheet'!F14 -> 2415.428485 | F21: =IF(O45<=0,"Cash Flow<0",) -> 0 | H21: =IF(O45<=0,-O45,) -> 0 | I21: =IF(O45>=0,"Cash Flow>0",) -> Cash Flow>0 | J21: =IF(O45>=0,O45,) -> 12433.46508 | M21: - | N21: Purchase of goods | O21: ='Income statement'!C12 -> 3456.039867 | P21: ='Income statement'!D12 -> 3729.870485
A22: + | B22: Factored unmatured notes receivable | C22: ='Income statement'!G6 -> 2235.550245 | D22: ='Income statement'!H6 -> 1902.335846 | F22: Dividend paid | H22: ='Income statement'!G4 -> 156.7257131 | I22: Capital increase | J22: ='Balance Sheet'!H5-'Balance Sheet'!I5-('Balance Sheet'!I7-'Balance Sheet'!H7+'Balance Sheet'!I8-'Income statement'!G4)+'Balance Sheet'!H6-'Balance Sheet'!I6 -> 16129.75994 | M22: - | N22: Inventory change (Goods) | O22: ='Income statement'!C13 -> 413.3251185 | P22: ='Income statement'!D13 -> 236.0378678
B23: - | F23: Operating investments | H23: ='Balance Sheet'!E5+'Balance Sheet'!E6-('Balance Sheet'!F5+'Balance Sheet'!F6)+'Income statement'!C20+'Income statement'!G12 -> 8471.011003 | I23: Disposal of fixed assets | J23: ='Income statement'!G10 -> 4072.021609 | M23: = | N23: Gross margin (3) | O23: =O20-O21-O22 -> 2940.991957 | P23: =P20-P21-P22 -> 1649.764031
B24: CURRENT RESSOURCES | C24: =C25+C26+C27 -> 17403.83345 | D24: =D25+D26+D27 -> 18158.61883 | F24: Financial investments | H24: ='Balance Sheet'!E7-'Balance Sheet'!F7 -> 3891.212187 | I24: Loan decrease | J24: ='Balance Sheet'!F8-'Balance Sheet'!E8 -> 449.8449421
B25: Payables (suppliers) | C25: ='Balance Sheet'!H14 -> 14834.14355 | D25: ='Balance Sheet'!I14 -> 14408.96081 | F25: =IF(-(('Balance Sheet'!H13-'Balance Sheet'!I13)+('Income statement'!G6-'Income statement'!H6))=H25,"Financial debt decrease",0) -> 0 | H25: =IF(('Balance Sheet'!H13-'Balance Sheet'!I13)+('Income statement'!G6-'Income statement'!H6)<0,-(('Balance Sheet'!H13-'Balance Sheet'!I13)+('Income statement'!G6-'Income statement'!H6)),0) -> 0 | I25: Investment grant | J25: ='Balance Sheet'!H9-'Balance Sheet'!I9+'Income statement'!G14 -> 722 | N25: …
A26: + | B26: Social and tax debt | C26: ='Balance Sheet'!H15 -> 2027.149343 | D26: ='Balance Sheet'!I15 -> 2771.639218 | F26: =IF(('Balance Sheet'!C15+'Balance Sheet'!C16)-('Balance Sheet'!F16+'Balance Sheet'!F15)>0,"Cash increase",) -> Cash increase | H26: =IF(('Balance Sheet'!C15+'Balance Sheet'!C16)-('Balance Sheet'!F15+'Balance Sheet'!F16)>0,('Balance Sheet'!C15+'Balance Sheet'!C16)-('Balance Sheet'!F15+'Balance Sheet'!F16),) -> 40655.81618 | I26: =IF('Balance Sheet'!H13-'Balance Sheet'!I13+'Income statement'!G6-'Income statement'!H6=J26,"Financial debt increase",) -> Financial debt increase | J26: =IF('Balance Sheet'!H13-'Balance Sheet'!I13+'Income statement'!G6-'Income statement'!H6>0,'Balance Sheet'!H13-'Balance Sheet'!I13+'Income statement'!G6-'Income statement'!H6,0) -> 22223.38205 | N26: Value added | O26: =O17 -> 30836.05213 | P26: =P17 -> 24177.41298
A27: + | B27: Fixed asset debt | C27: ='Balance Sheet'!H16 -> 542.5405536 | D27: ='Balance Sheet'!I16 -> 978.0188097 | F27: =IF(C17-D17>0,"WCR increase",) -> WCR increase | H27: =IF(C17-D17>0,C17-D17,) -> 2855.708657 | I27: =IF(('Balance Sheet'!E15+'Balance Sheet'!E16-('Balance Sheet'!F15+'Balance Sheet'!F16))<0,"Cash decrease",) -> 0 | J27: =IF(('Balance Sheet'!E15+'Balance Sheet'!E16-('Balance Sheet'!F16+'Balance Sheet'!F15))<0,-('Balance Sheet'!E15+'Balance Sheet'!E16-('Balance Sheet'!F16+'Balance Sheet'!F15)),) -> 0 | M27: - | N27: Wages and salaries | O27: ='Income statement'!C18 -> 6434.451505 | P27: ='Income statement'!D18 -> 6794.98611
I28: =IF(C17-D17<0,"WCR decrease",) -> 0 | J28: =IF(C17-D17<0,-(C17-D17),) -> 0 | M28: - | N28: Payroll | O28: ='Income statement'!C19 -> 3217.225753 | P28: ='Income statement'!D19 -> 3397.493055
F29: TOTAL | H29: =SUM(H21:H28) -> 56030.47374 | I29: TOTAL | J29: =SUM(J21:J28) -> 56030.47363 | M29: - | N29: Employee participation to the result | O29: ='Income statement'!C30 -> 2419.207356 | P29: ='Income statement'!D30 -> 1045.06969
M30: - | N30: External staff | O30: ='Income statement'!G8 -> 841.9416181 | P30: ='Income statement'!H8 -> 818.8969295
M31: = | N31: EBITDA (4) | O31: =O26-O27-O28-O29-O30 -> 17923.2259 | P31: =P26-P27-P28-P29-P30 -> 12120.9672
N32: …
N33: EBITDA | O33: =O31 -> 17923.2259 | P33: =P31 -> 12120.9672
M34: + | N34: Extraordinary revenue | O34: ='Income statement'!C27 -> 4314.991645 | P34: ='Income statement'!D27 -> 265.4107687
M35: - | N35: Extraordinary expenses | O35: ='Income statement'!C28 -> 1000.603338 | P35: ='Income statement'!D28 -> 124.5998685
B36: ES CE QUE L'EXERCICE EST MAL GÉNÉRÉ? | M36: + | N36: Financial revenue | O36: ='Income statement'!C24 -> 26.01385304 | P36: ='Income statement'!D24 -> 55.67497627
B37: Valide ou Invalide | M37: - | N37: Investment grants transferred to income | O37: ='Income statement'!G14 -> 103.6336028 | P37: ='Income statement'!H14 -> 108.9326953
B38: Bilan N-1 | C38: =IF(INT('Balance Sheet'!F18)=INT('Balance Sheet'!I18),"VALIDE","INVALIDE") -> VALIDE | M38: + | N38: Book value of fixed assets sold | O38: ='Income statement'!G12 -> 860.2604246 | P38: ='Income statement'!H12 -> 0
B39: Bilan N | C39: =IF(INT('Balance Sheet'!E18)=INT('Balance Sheet'!H18),"VALIDE","INVALIDE") -> VALIDE | M39: - | N39: Sales price of fixed assets | O39: ='Income statement'!G10 -> 4072.021609 | P39: ='Income statement'!H10 -> 0
B40: Bilan fonctionnel N-1 | C40: =IF(INT(K15-K16)=INT(K4),"VALIDE","INVALIDE") -> VALIDE | M40: = | N40: Overall Gross profit (5) | O40: =O33+O34-O35+O36-O37+O38-O39 -> 17948.23327 | P40: =P33+P34-P35+P36-P37+P38-P39 -> 12208.52038
B41: Bilan fonctionnel N | C41: =IF(INT(J15-J16)=INT(J4),"VALIDE","INVALIDE") -> VALIDE | N41: …
B42: Tableau emploi ressource | C42: =IF(INT(H29)=INT(J29),"VALIDE","INVALIDE") -> VALIDE | N42: Overall Gross profit | O42: =O40 -> 17948.23327 | P42: =P40 -> 12208.52038
M43: - | N43: Financial expenses | O43: ='Income statement'!C25 -> 2289.158381 | P43: ='Income statement'!D25 -> 2023.405013
M44: - | N44: Income tax | O44: ='Income statement'!C31 -> 3225.609808 | P44: ='Income statement'!D31 -> 1393.426253
M45: = | N45: Cash flow (6) | O45: =O42-O43-O44 -> 12433.46508 | P45: =P42-P43-P44 -> 8791.689112
